bitfinex-derivatives/quotes_BNBF0:USTF0_20250807
["timestamp","ask_amount","ask_price","bid_price","bid_amount"]
[1754527798211,0.79402892,772.59,772.06,1.187]
[1754527798505,0.79402892,772.58,772.06,1.187]
[1754527798707,0.79402892,772.57,772.06,1.187]
[1754527798913,0.79402892,772.56,772.06,1.187]
[1754527799206,0.79402892,772.55,772.06,1.187]
[1754527799411,0.79402892,772.54,772.06,1.187]
[1754527799711,0.79402892,772.53,772.06,1.187]
[1754527799911,0.79402892,772.52,772.06,1.187]
[1754527800111,0.79402892,772.51,772.06,1.187]
[1754527800313,0.79402892,772.5,772.06,1.187]
[1754527800612,0.79402892,772.49,772.06,1.187]
[1754527800813,0.79402892,772.48,772.06,1.187]
[1754527801012,0.79409964,772.47,772.06,1.187]
[1754527801208,0.87367139,772.81,772.06,1.187]
[1754527801407,0.79409961,772.8,772.06,1.187]
[1754527801608,0.79409961,772.79,772.06,1.187]
[1754527801812,0.79409961,772.78,772.06,1.187]
[1754527802012,0.79409961,772.77,772.06,1.187]
[1754527802213,0.79409961,772.76,772.06,1.187]
[1754527802513,0.79409961,772.75,772.06,1.187]
[1754527802713,0.79409961,772.74,772.06,1.187]
[1754527802914,0.79409961,772.73,772.06,1.187]
[1754527803111,0.79409961,772.72,772.06,1.187]
[1754527803413,0.79409961,772.71,772.06,1.187]
[1754527803614,0.79409961,772.7,772.06,1.187]
[1754527803914,0.79409961,772.69,772.06,1.187]
[1754527804117,0.79409961,772.68,772.06,1.187]
[1754527804413,0.87367139,772.95,772.06,1.187]
[1754527804715,0.87367139,772.96,772.06,2.3422675]
[1754527805014,0.87367139,772.97,772.07,1.1552675]
[1754527805216,0.87367139,772.99,772.06,2.3422675]
[1754527805415,0.87367139,773.03,772.09,1.1552675]
[1754527805813,0.87367139,772.93,772.21,1.1552675]
[1754527806013,0.87367139,772.93,772.06,1.187]
[1754527806014,0.87367139,772.97,772.25,1.1552675]
[1754527806215,0.87367139,772.99,772.26,1.1552675]
[1754527806413,0.87367139,773.0,772.25,1.1552675]
[1754527807315,0.87367139,773.01,772.25,1.1552675]
[1754527807513,0.87367139,773.02,772.23,1.1552675]
[1754527808515,0.87367139,773.03,772.22,1.1552675]
[1754527808712,0.87367139,773.02,772.23,1.1552675]
[1754527809519,0.87367139,773.03,772.22,1.1552675]
[1754527810518,0.87367139,773.04,772.21,1.1552675]
[1754527811519,0.87367139,773.05,772.21,1.1552675]
[1754527812420,0.87367139,773.05,772.2,1.1552675]
[1754527812715,0.87367139,773.04,772.19,1.1552675]
[1754527813017,0.87367139,773.06,772.17,1.1552675]
[1754527813219,0.87367139,773.05,772.17,1.1552675]
[1754527813420,0.87367139,773.06,772.16,1.1552675]
[1754527815222,0.87367139,773.04,772.19,1.1552675]
[1754527815517,0.87367139,773.04,772.18,1.1552675]
[1754527815722,0.87367139,773.03,772.2,1.1552675]
[1754527816422,0.87367139,773.03,772.19,1.1552675]
[1754527816721,0.87367139,773.05,772.17,1.1552675]
[1754527816919,0.87367139,773.09,772.21,1.1552675]
[1754527817122,0.87367139,773.09,772.22,1.1552675]
[1754527817322,0.87367139,773.09,772.21,1.1552675]
[1754527818519,0.87367139,773.1,772.21,1.1552675]
[1754527819020,0.87367139,773.09,772.21,1.1552675]
[1754527819423,0.87367139,773.1,772.2,1.1552675]
[1754527821520,0.87367139,773.11,772.19,1.1552675]
[1754527822719,0.87367139,773.13,772.2,1.1552675]
[1754527823024,0.87367139,773.11,772.22,1.1552675]
[1754527823425,0.87367139,773.12,772.22,1.1552675]
[1754527824425,0.87367139,773.12,772.21,1.1552675]
[1754527826522,0.87367139,773.12,772.06,2.9291447]
[1754527826523,0.87367139,773.1,772.25,1.1552675]
[1754527826722,0.87367139,773.09,772.25,1.1552675]
[1754527827523,0.87367139,773.1,772.24,1.1552675]
[1754527827927,0.87367139,773.1,772.25,1.1552675]
[1754527828326,0.87367139,773.1,772.24,1.1552675]
[1754527829831,0.87367139,773.1,772.25,1.1552675]
[1754527830231,0.87367139,773.1,772.24,1.1552675]
[1754527831832,0.87367139,773.1,772.25,1.1552675]
[1754527832235,0.87367139,773.09,772.25,1.1552675]
[1754527832435,0.87367139,773.1,772.25,1.1552675]
[1754527832635,0.87367139,773.09,772.26,1.1552675]
[1754527834939,0.86986356,773.09,772.26,1.1552675]
[1754527835341,0.86986356,773.1,772.26,1.1552675]
[1754527836940,0.86986356,773.11,772.25,1.1552675]
[1754527839344,0.86986356,773.11,772.26,1.286]
[1754527840044,0.86986356,773.1,772.26,1.286]
[1754527840241,0.86986356,773.1,772.26,2.4412675]
[1754527845949,0.86986356,773.14,772.26,1.286]
[1754527846249,0.86986356,773.13,772.26,1.286]
[1754527847351,0.86986356,773.12,772.26,1.286]
[1754527850455,0.86986356,773.11,772.26,1.286]
[1754527852456,0.86986356,773.1,772.26,1.286]
[1754527854160,0.86986356,773.09,772.26,2.4412675]
[1754527855961,0.86986356,773.05,772.31,1.1552675]
[1754527856361,0.86986356,773.04,772.32,1.1552675]
[1754527857458,0.86986356,773.04,772.33,1.1552675]
[1754527858158,0.86986356,773.04,772.31,1.1552675]
[1754527858361,0.86986356,773.04,772.32,1.1552675]
[1754527858658,0.86986356,773.03,772.33,1.1552675]
[1754527859262,0.86986356,773.03,772.34,1.1552675]
[1754527861062,0.86986356,773.03,772.35,1.1552675]
[1754527861659,0.86986356,773.02,772.36,1.1552675]
[1754527862463,0.86986356,773.0,772.37,1.1552675]
[1754527863464,0.86986356,773.05,772.31,1.1552675]
[1754527864265,0.86986356,773.05,772.32,1.1552675]
[1754527864465,0.86986356,773.05,772.33,1.1552675]
[1754527864661,0.86986356,773.04,772.34,1.1552675]
[1754527864866,0.86986356,773.1,772.39,1.1552675]
[1754527865366,0.86986356,773.09,772.4,1.1552675]
[1754527866265,0.86986356,773.1,772.39,1.1552675]
[1754527866468,0.86986356,773.09,772.39,1.1552675]
[1754527866965,0.86986356,773.1,772.39,1.1552675]
[1754527868064,0.86986356,773.09,772.4,1.1552675]
[1754527868269,0.86986356,773.1,772.39,1.1552675]
[1754527868768,0.86986356,773.18,772.29,1.1552675]
[1754527869164,2.9127533,774.41,772.26,1.286]
[1754527869165,0.86986356,773.22,772.34,1.1552675]
[1754527869468,1.1651013,773.43,772.33,1.1552675]
[1754527869469,0.86986356,773.23,772.33,1.1552675]
[1754527870871,0.86986356,773.24,772.32,1.1552675]
[1754527871171,0.86986356,773.28,772.37,1.1552675]
[1754527871468,0.86986356,773.29,772.36,1.1552675]
[1754527872268,0.86986356,773.3,772.35,1.1552675]
[1754527872671,0.86986356,773.31,772.34,1.1552675]
[1754527872970,0.86986356,773.31,772.35,1.1552675]
[1754527873265,0.86986356,773.31,772.34,1.1552675]
[1754527874267,0.86986356,773.32,772.34,1.1552675]
[1754527875272,0.86986356,773.32,772.33,1.1552675]
[1754527876273,0.86986356,773.31,772.35,1.1552675]
[1754527876572,0.86986356,773.3,772.35,1.1552675]
[1754527877271,0.86986356,773.31,772.35,1.1552675]
[1754527878576,0.86986356,773.28,772.38,1.1552675]
[1754527879079,0.86986356,773.27,772.41,1.1552675]
[1754527879270,0.86986356,773.28,772.4,1.1552675]
[1754527880870,0.86986356,773.26,772.42,1.1552675]
[1754527881073,0.86986356,773.29,772.41,1.285]
[1754527882579,0.86986356,773.27,772.42,1.1552675]
[1754527882780,0.86986356,773.29,772.41,1.285]
[1754527885381,0.86986356,773.3,772.41,1.285]
[1754527890886,0.86986356,773.28,772.41,2.4402675]
[1754527892593,0.86986356,773.39,772.41,1.285]
[1754527892793,0.86986356,773.41,772.41,1.285]
[1754527892993,0.86986356,773.45,772.41,1.285]
[1754527893292,0.86986356,773.46,772.41,1.285]
[1754527896292,0.86986356,773.47,772.41,1.285]
[1754527901298,0.22506063,773.65,772.41,1.285]
[1754527901299,0.86986356,773.48,772.41,1.285]
[1754527902299,0.86986356,773.46,772.41,1.285]
[1754527902497,0.86986356,773.42,772.41,1.285]
[1754527902700,0.86986356,773.38,772.46,1.1552675]
[1754527902995,0.86986356,773.37,772.47,1.1552675]
[1754527906206,0.86986356,773.38,772.47,1.1552675]
[1754527907401,0.86986356,773.37,772.47,1.1552675]
[1754527908208,0.86986356,773.38,772.47,1.1552675]
[1754527908408,0.86986356,773.37,772.47,1.1552675]
[1754527909107,0.86986356,773.37,772.46,1.1552675]
[1754527909509,1.1651013,773.52,772.46,1.1552675]
[1754527909510,0.86986356,773.36,772.46,1.1552675]
[1754527911109,0.86986356,773.34,772.49,1.1552675]
[1754527911509,0.86986356,773.34,772.5,1.1552675]
[1754527912507,0.86986356,773.33,772.51,1.1552675]
[1754527914408,0.86986356,773.32,772.52,1.1552675]
[1754527914607,0.86986356,773.3,772.54,1.1552675]
[1754527916311,0.86986356,773.3,772.55,1.1552675]
[1754527916718,1.1651013,773.42,772.55,1.1552675]
[1754527916914,1.1651013,773.42,772.42,1.7421447]
[1754527916915,0.87052116,773.28,772.53,1.1552675]
[1754527917215,0.87052116,773.46,772.41,1.285]
[1754527917410,0.87052116,773.49,772.41,1.285]
[1754527918413,0.87052116,773.48,772.41,1.285]
[1754527921620,0.87052116,773.47,772.41,1.285]
[1754527923322,0.87052116,773.46,772.41,1.285]
[1754527924320,0.87052116,773.45,772.41,1.285]
[1754527924521,0.87052116,773.46,772.41,1.285]
[1754527926319,0.87052116,773.45,772.41,1.285]
[1754527926923,0.22506063,773.65,772.41,1.285]
[1754527926924,0.87052116,773.43,772.41,1.285]
[1754527927119,0.87052116,773.4,772.41,1.285]
[1754527927326,0.87052116,773.33,772.45,1.1552675]
[1754527927625,0.87052116,773.33,772.46,1.1552675]
[1754527928022,0.87052116,773.31,772.49,1.1552675]
[1754527928225,0.87052116,773.3,772.49,1.1552675]
[1754527928724,0.87052116,773.3,772.5,1.1552675]
[1754527929021,0.87052116,773.3,772.49,1.1552675]
[1754527929320,0.87052116,773.3,772.5,1.1552675]
[1754527929520,0.87052116,773.29,772.5,1.1552675]
[1754527929721,0.87052116,773.28,772.52,1.1552675]
[1754527930723,0.87052116,773.27,772.54,1.1552675]
[1754527931123,0.87052116,773.26,772.54,1.1552675]
[1754527931422,0.87052116,773.25,772.55,1.1552675]
[1754527932623,0.87052116,773.25,772.56,1.1552675]
[1754527934327,0.87052116,773.24,772.56,1.1552675]
[1754527935123,0.87052116,773.24,772.57,1.1552675]
[1754527935526,0.87052116,773.36,772.42,1.1552675]
[1754527937626,0.87052116,773.36,772.43,1.312]
[1754527939429,0.87052116,773.35,772.43,1.312]
[1754527941730,0.87052116,773.35,772.43,2.4672675]
[1754527945339,0.87052116,773.34,772.43,2.4672675]
[1754527945537,0.87052116,773.25,772.56,1.1552675]
[1754527945740,0.87052116,773.24,772.56,1.1552675]
[1754527946439,0.22506063,773.65,772.43,1.312]
[1754527946440,0.87052116,773.36,772.43,1.312]
[1754527947437,0.87052116,773.35,772.43,1.312]
[1754527950037,0.87052116,773.34,772.43,1.312]
[1754527950543,0.87052116,773.35,772.43,2.4672675]
[1754527951342,0.87052116,773.34,772.43,2.4672675]
[1754527953346,0.87052116,773.34,772.44,1.1552675]
[1754527956249,0.87052116,773.33,772.43,1.1552675]
[1754527956549,0.87052116,773.33,772.21,1.7421447]
[1754527956550,0.87052116,773.24,772.55,1.1552675]
[1754527959350,0.87052116,773.24,772.56,0.972]
[1754527959554,0.87052116,773.23,772.56,0.972]
[1754527959754,0.87052116,773.3,772.56,0.972]
[1754527960054,0.22506063,773.65,772.56,0.972]
[1754527960055,0.87052116,773.15,772.56,0.972]
[1754527960249,0.87052116,773.14,772.56,0.972]
[1754527960450,0.87052116,773.18,772.56,0.972]
[1754527960651,0.87052116,773.16,772.56,0.972]
[1754527960854,0.87052116,773.13,772.56,0.972]
[1754527961555,0.87052116,773.1,772.56,0.972]
[1754527961952,0.87052116,773.08,772.56,0.972]
[1754527962352,0.87052116,773.06,772.56,0.972]
[1754527962755,0.87052116,773.01,772.56,0.972]
[1754527963451,0.87052116,773.03,772.56,0.972]
[1754527964256,0.87052116,773.04,772.56,0.972]
[1754527965357,0.87052116,773.05,772.56,0.972]
[1754527966255,0.87052116,773.06,772.56,0.972]
[1754527966458,0.87052116,773.05,772.56,0.972]
[1754527967354,0.87052116,773.06,772.56,0.972]
[1754527968456,0.87052116,773.07,772.56,0.972]
[1754527969561,0.87052116,773.08,772.56,0.972]
[1754527971458,0.87052116,773.09,772.29,1.1552675]
[1754527971758,0.87052116,773.09,772.3,1.1552675]
[1754527971961,0.87052116,773.08,772.3,1.1552675]
[1754527972260,0.87052116,773.08,772.18,1.7421447]
[1754527972261,0.87052116,773.08,772.31,1.1552675]
[1754527973259,0.87052116,773.09,772.3,1.1552675]
[1754527974959,0.87052116,773.09,772.31,1.17]
[1754527976863,0.87052116,773.1,772.31,1.17]
[1754527978368,0.87052116,773.11,772.31,1.17]
[1754527981566,0.87052116,773.14,772.31,1.17]
[1754527981765,0.87052116,773.15,772.31,1.17]
[1754527986473,0.87052116,773.13,772.31,1.17]
[1754527989278,0.87052116,773.15,772.31,1.17]
[1754527991376,0.87052116,773.13,772.31,1.17]
[1754527992180,0.87052116,773.15,772.31,1.17]
[1754527996685,0.87052116,773.16,772.31,1.17]
[1754527998385,0.87052116,773.15,772.31,1.17]
[1754527998683,0.87052116,773.17,772.31,1.17]
[1754527999181,0.87052116,773.15,772.31,1.17]
[1754528001283,0.87052116,773.14,772.31,1.17]
[1754528002188,0.87052116,773.11,772.31,1.17]
[1754528003287,1.1651013,773.23,772.31,1.17]
[1754528003288,0.87052116,773.1,772.31,1.17]
[1754528004889,0.87052116,773.1,772.3,1.1552675]
[1754528006396,0.87052116,773.09,772.31,1.1552675]
[1754528008192,0.87052116,773.09,772.32,1.165]
[1754528008496,0.87052116,773.08,772.32,1.165]
[1754528009398,0.87052116,773.08,772.32,2.3202675]
[1754528010293,0.87052116,773.07,772.32,2.3202675]
[1754528011394,0.87052116,773.06,772.32,2.3202675]
[1754528011700,0.87052116,773.05,772.32,1.165]
[1754528012397,0.87052116,773.05,772.32,2.3202675]
[1754528013195,0.87052116,773.04,772.32,2.3202675]
[1754528015101,0.87052116,773.05,772.32,1.165]
[1754528015302,0.87052116,773.04,772.32,1.165]
[1754528016303,0.87052116,773.04,772.32,2.3202675]
[1754528017403,0.87052116,773.03,772.33,1.1552675]
[1754528018203,0.87052116,773.02,772.33,1.1552675]
[1754528018498,0.87052116,773.01,772.34,1.1552675]
[1754528018702,0.87052116,773.01,772.35,1.1552675]
[1754528019303,0.87052116,772.99,772.37,1.1552675]
[1754528020000,0.87052116,773.0,772.36,1.1552675]
[1754528020405,0.87052116,772.99,772.37,1.1552675]
[1754528022304,0.87052116,772.98,772.37,1.1552675]
[1754528024005,0.87052116,772.98,772.38,1.1552675]
[1754528025105,0.87052116,772.97,772.39,1.1552675]
[1754528027104,0.87052116,772.96,772.39,1.1552675]
[1754528028408,0.87052116,772.96,772.4,1.1552675]
[1754528029212,0.87052116,772.95,772.4,1.1552675]
[1754528029910,0.87052116,772.95,772.41,1.1552675]
[1754528032806,0.87052116,772.96,772.4,1.1552675]
[1754528034311,0.87052116,772.96,772.39,1.1552675]
[1754528034509,0.87052116,772.96,772.4,1.1552675]
[1754528035510,0.87052116,772.97,772.41,0.932]
[1754528036513,0.87052116,773.0,772.41,0.932]
[1754528042616,0.87052116,772.99,772.41,0.932]
[1754528043817,1.1651013,773.14,772.41,0.932]
[1754528044016,0.87319032,772.99,772.41,0.932]
[1754528045615,0.87319032,772.98,772.41,0.932]
[1754528045822,0.87319032,772.99,772.41,0.932]
[1754528046320,0.87319032,772.95,772.41,2.0872675]
[1754528062836,0.87319032,773.01,772.41,0.932]
[1754528072743,0.87319032,772.96,772.41,0.932]
[1754528073645,0.87319032,772.98,772.41,0.932]
[1754528073944,0.87319032,773.1,772.41,0.932]
[1754528074445,0.87319032,772.97,772.41,0.932]
[1754528075241,0.87319032,772.99,772.41,0.932]
[1754528075441,0.87319032,772.96,772.41,0.932]
[1754528075741,0.87319032,772.99,772.41,0.932]
[1754528076140,0.87319032,772.94,772.41,0.932]
[1754528076345,0.87319032,772.96,772.41,0.932]
[1754528080249,0.87319032,772.97,772.41,0.932]
[1754528082449,0.87319032,772.98,772.41,0.932]
[1754528083246,0.87319032,772.99,772.41,0.932]
[1754528083850,0.87319032,772.97,772.41,0.932]
[1754528084246,0.87319032,772.96,772.41,0.932]
[1754528085154,0.87319032,772.87,772.41,0.932]
[1754528086454,0.87319032,772.88,772.41,0.932]
[1754528087158,0.87319032,772.89,772.41,0.932]
[1754528088453,0.87319032,772.92,772.41,0.932]
[1754528089354,0.87319032,772.93,772.41,0.932]
[1754528090958,0.87319032,772.92,772.41,0.932]
[1754528091158,0.87319032,772.93,772.41,0.932]
[1754528092856,0.87319032,772.94,772.41,0.932]
[1754528093060,0.87319032,772.96,772.41,0.932]
[1754528093560,0.87319032,772.96,772.08,0.22512688]
[1754528094360,1.1651013,773.13,772.08,0.22512688]
[1754528094361,0.87319032,772.93,772.08,0.22512688]
[1754528095256,0.87319032,772.94,772.08,0.22512688]
[1754528095958,0.87319032,772.94,772.09,1.084]
[1754528097960,0.87319032,772.92,772.09,1.084]
[1754528098563,0.87319032,772.91,772.09,1.084]
[1754528099766,0.87319032,772.96,772.09,1.084]
[1754528101467,0.87319032,773.02,772.09,1.084]
[1754528102068,0.87319032,773.04,772.09,1.084]
[1754528102671,0.87319032,772.99,772.09,1.084]
[1754528102872,0.87319032,772.95,772.09,1.084]
[1754528103272,0.87319032,772.91,772.09,1.084]
[1754528105172,0.87319032,772.92,772.09,1.084]
[1754528105473,0.87319032,773.0,772.09,1.084]
[1754528107172,0.87319032,773.01,772.09,1.084]
[1754528107975,0.87319032,773.02,772.09,1.084]
[1754528109075,0.87319032,773.03,772.09,1.084]
[1754528112078,0.87319032,773.01,772.09,1.084]
[1754528112276,0.87319032,773.02,772.09,1.084]
[1754528112776,0.87319032,773.01,772.09,1.084]
[1754528112979,0.87319032,773.04,772.09,1.084]
[1754528115485,0.87319032,772.98,772.09,1.084]
[1754528122889,0.87319032,772.91,772.09,1.084]
[1754528123387,0.87319032,772.9,772.09,1.084]
[1754528123585,0.87319032,772.91,772.09,1.084]
[1754528123985,0.87319032,772.9,772.09,1.084]
[1754528124189,0.87319032,772.92,772.09,1.084]
[1754528127790,0.87319032,772.91,772.09,1.084]
[1754528129194,0.87319032,772.92,772.09,1.084]
[1754528130295,0.87319032,772.91,772.09,1.084]
[1754528130798,0.87319032,772.92,772.09,1.084]
[1754528131192,0.87319032,772.91,772.09,1.084]
[1754528132392,0.87319032,772.9,772.09,1.084]
[1754528133098,0.87319032,772.84,772.09,1.084]
[1754528134097,0.87319032,772.83,772.09,1.084]
[1754528134293,0.87319032,772.82,772.09,1.084]
[1754528137696,0.87319032,772.81,772.09,1.084]
[1754528139097,0.87319032,772.79,772.09,1.084]
[1754528139803,0.87319032,772.75,772.09,1.084]
[1754528140604,0.87319032,772.73,772.09,1.084]
[1754528141514,0.87319032,772.76,772.09,1.084]
[1754528143009,0.87319032,772.78,772.09,1.084]
[1754528143917,0.87319032,772.78,772.08,0.22512688]
[1754528145516,0.87319032,772.77,772.08,0.22512688]
[1754528146516,0.87319032,772.77,772.09,1.371]
[1754528147221,0.87319032,772.76,772.09,1.371]
[1754528148521,0.87319032,772.77,772.09,1.371]
[1754528150322,0.87319032,772.76,772.09,1.371]
[1754528151324,0.87319032,772.74,772.09,1.371]
[1754528151725,0.87319032,772.75,772.09,1.371]
[1754528152126,0.87319032,772.76,772.09,1.371]
[1754528152322,0.87319032,772.75,772.09,1.371]
[1754528152925,0.87319032,772.74,772.09,1.371]
[1754528153225,0.87319032,772.73,772.09,1.371]
[1754528153422,0.87319032,772.72,772.09,1.371]
[1754528154422,0.87226715,772.72,772.09,1.371]
[1754528155126,0.87226715,772.86,772.09,1.371]
[1754528155523,0.87226715,772.83,772.09,1.371]
[1754528155722,0.22515382,773.18,772.09,1.371]
[1754528155723,0.87226715,772.85,772.09,1.371]
[1754528156223,0.87226715,772.88,772.09,1.371]
[1754528156425,0.87226715,772.87,772.09,1.371]
[1754528158226,0.87226715,772.86,772.09,1.371]
[1754528159229,0.87226715,772.85,772.09,1.371]
[1754528161429,0.87226715,772.84,772.09,1.371]
[1754528162129,0.87226715,772.82,772.09,1.371]
[1754528163134,0.87226715,772.81,772.09,1.371]
[1754528163330,0.87226715,772.8,772.09,1.371]
[1754528165032,0.87226715,772.7,772.09,1.371]
[1754528165536,0.87226715,772.68,772.08,0.22512688]
[1754528166237,1.1651013,772.85,772.08,0.22512688]
[1754528166534,0.87367369,772.68,772.08,0.22512688]
[1754528168536,0.87367369,772.63,772.08,0.22512688]
[1754528168735,0.87367369,772.64,772.09,0.957]
[1754528170037,0.87367369,772.66,772.09,0.957]
[1754528171540,0.87367369,772.67,772.09,0.957]
[1754528172036,0.87367369,772.72,772.09,0.957]
[1754528181846,0.87367369,772.67,772.09,0.957]
[1754528183346,0.87367369,772.65,772.09,0.957]
[1754528184648,0.87367369,772.66,772.09,0.957]
[1754528190254,0.87367369,772.65,772.09,0.957]
[1754528190758,0.87367369,772.68,772.09,0.957]
[1754528191458,0.87367369,772.69,772.09,0.957]
[1754528192358,0.87367369,772.68,772.09,0.957]
[1754528194761,0.87367369,772.73,772.09,0.957]
[1754528195166,0.87367369,772.72,772.09,0.957]
[1754528196162,0.87367369,772.72,772.13,0.22521939]
[1754528200669,0.87367369,772.71,772.13,0.22521939]
[1754528204469,0.87367369,772.65,772.13,0.22521939]
[1754528204970,0.87367369,772.64,772.13,0.22521939]
[1754528205475,0.87367369,772.63,772.13,0.22521939]
[1754528206771,0.87367369,772.64,772.13,0.22521939]
[1754528208671,0.87367369,772.63,772.13,0.22521939]
[1754528208871,0.87367369,772.64,772.13,0.22521939]
[1754528209075,0.87367369,772.87,772.13,0.22521939]
[1754528213776,0.87367369,772.9,772.13,0.22521939]
[1754528213981,0.87367369,772.89,772.14,1.411]
[1754528217183,0.87367369,772.9,772.14,1.411]
[1754528218886,0.87367369,772.78,772.14,1.411]
[1754528219985,1.1651013,772.99,772.14,1.411]
[1754528219986,0.87367369,772.77,772.14,1.411]
[1754528227684,0.87367369,772.75,772.14,1.411]
[1754528227984,0.87367369,772.69,772.14,1.411]
[1754528228886,0.87367369,772.68,772.14,1.411]
[1754528229098,0.87367369,772.66,772.14,1.411]
[1754528230791,0.87367369,772.67,772.14,1.411]
[1754528231091,0.87367369,772.67,772.13,0.22521939]
[1754528232392,0.87367369,772.66,772.13,0.22521939]
[1754528234693,0.87367369,772.66,772.14,1.311]
[1754528237893,0.87367369,772.65,772.14,1.311]
[1754528238192,0.87367369,772.88,772.14,1.311]
[1754528240298,0.87367369,772.89,772.14,1.311]
[1754528248101,0.87367369,772.75,772.14,1.311]
[1754528248298,0.22521939,773.0,772.14,1.311]
[1754528248299,0.87367369,772.76,772.14,1.311]
[1754528249904,0.87367369,772.76,772.13,0.22521939]
[1754528252106,0.87367369,772.76,772.14,1.214]
[1754528254806,0.87367369,772.75,772.14,1.214]
[1754528258008,0.87367369,772.74,772.14,1.214]
[1754528263316,0.87367369,772.73,772.14,1.214]
[1754528264527,0.87367369,772.79,772.14,1.214]
[1754528269427,0.87367369,772.72,772.14,1.214]
[1754528271027,0.87367369,772.74,772.14,1.214]
[1754528271533,0.87367369,772.73,772.14,1.214]
[1754528273024,0.87367369,772.75,772.14,1.214]
[1754528273228,0.87367369,772.74,772.14,1.214]
[1754528274428,0.87367369,772.72,772.14,1.214]
[1754528274726,0.87367369,772.73,772.14,1.214]
[1754528277229,0.87367369,772.73,772.13,0.22521939]
[1754528280834,0.87367369,772.73,772.14,1.32]
[1754528281034,0.87367369,772.71,772.14,1.32]
[1754528281432,0.87367369,772.7,772.14,1.32]
[1754528282834,0.87367369,772.67,772.14,1.32]
[1754528283933,0.87367369,772.66,772.14,1.32]
[1754528286234,0.87367369,772.64,772.14,1.32]
[1754528286834,0.87367369,772.65,772.14,1.32]
[1754528287037,0.87367369,772.68,772.14,1.32]
[1754528289335,0.87367369,772.67,772.14,1.32]
[1754528296939,0.87367369,772.64,772.14,1.32]
[1754528309653,0.87367369,772.69,772.14,1.32]
[1754528309856,0.87367369,772.68,772.14,1.32]
[1754528310857,0.87367369,772.7,772.14,1.32]
[1754528314656,0.87367369,772.72,772.14,1.32]
[1754528319664,0.87367369,772.7,772.14,1.32]
[1754528320861,0.87367369,772.69,772.14,1.32]
[1754528324466,0.87367369,772.65,772.14,1.32]
[1754528329469,0.87367369,772.64,772.14,1.32]
[1754528329863,0.87367369,772.71,772.14,1.32]
[1754528331771,0.87367369,772.74,772.14,1.32]
[1754528333777,0.87367369,772.74,772.13,0.22521939]
[1754528336273,0.87367369,772.74,772.14,1.288]
[1754528338179,0.87367369,772.79,772.14,1.288]
[1754528339675,0.87367369,772.78,772.14,1.288]
[1754528344084,0.87367369,772.77,772.14,1.288]
[1754528346686,0.87367369,772.76,772.14,1.288]
[1754528348186,0.87367369,772.7,772.14,1.288]
[1754528348888,0.87367369,772.71,772.14,1.288]
[1754528350286,0.87367369,772.69,772.14,1.288]
[1754528354489,0.87367369,772.67,772.14,1.288]
[1754528356786,0.87367369,772.66,772.14,1.288]
[1754528357086,0.87367369,772.67,772.14,1.288]
[1754528357689,0.87377531,772.67,772.14,1.288]
[1754528358694,0.87377531,772.66,772.14,1.288]
[1754528359397,0.87377531,772.65,772.14,1.288]
[1754528362897,0.87377531,772.7,772.14,1.288]
[1754528372703,0.87377531,772.69,772.14,1.288]
[1754528372906,0.87377531,772.64,772.14,1.288]
[1754528376505,0.87377531,772.62,772.14,1.288]
[1754528377903,0.87377531,772.65,772.14,1.288]
[1754528382311,0.87377531,772.67,772.14,1.288]
[1754528387710,0.87377531,772.66,772.14,1.288]
[1754528388811,0.87377531,772.67,772.14,1.288]
[1754528390417,0.87377531,772.67,772.13,0.22521939]
[1754528392016,0.87377531,772.66,772.13,0.22521939]
[1754528392620,0.22521939,773.0,772.13,0.22521939]
[1754528392621,0.87377531,772.65,772.13,0.22521939]
[1754528392917,0.87377531,772.64,772.13,0.22521939]
[1754528393117,0.87377531,772.64,772.14,1.208]
[1754528394818,0.87377531,772.65,772.14,1.208]
[1754528397327,0.87377531,772.68,772.14,1.208]
[1754528398728,0.87377531,772.67,772.14,1.208]
[1754528400328,0.87377531,772.68,772.14,1.208]
[1754528400625,0.87377531,772.69,772.14,1.208]
[1754528404030,0.87377531,772.68,772.14,1.208]
[1754528404831,0.87377531,772.69,772.14,1.208]
[1754528406131,0.87377531,772.66,772.14,1.208]
[1754528406328,0.87377531,772.67,772.14,1.208]